bitfinex/quotes_SOLUSD_20250518
["timestamp","ask_amount","ask_price","bid_price","bid_amount"]
[1747560708102,15.66951043,171.12,171.03,24.126903]
[1747560709511,30.27914109,171.12,171.03,24.126903]
[1747560710103,9.82565817,171.1,171.03,18.28]
[1747560710307,9.82565817,171.1,171.03,36.78]
[1747560711526,5.84487696,171.09,171.03,36.78]
[1747560711895,15.67053513,171.09,171.03,36.78]
[1747560712101,5.84487696,171.09,171.03,36.78]
[1747560712403,5.84487696,171.09,171.03,18.28]
[1747560715533,5.84419379,171.11,171.03,24.12688273]
[1747560716403,5.84419379,171.11,171.03,18.28]
[1747560717435,30.28033644,171.11,171.03,18.28]
[1747560717812,9.82565817,171.1,171.03,18.28]
[1747560719727,5.84487696,171.09,171.03,18.28]
[1747560719938,20.45706937,171.09,171.03,18.28]
[1747560720932,5.84487696,171.09,171.03,18.28]
[1747560721623,24.43594421,171.12,171.03,18.28]
[1747560721820,5.84419379,171.11,171.03,24.12689755]
[1747560722127,5.84419379,171.11,171.03,18.28]
[1747560722128,20.45467827,171.11,171.03,18.28]
[1747560722431,30.28033644,171.11,171.03,18.28]
[1747560723118,9.82565817,171.1,171.03,18.28]
[1747560723833,5.84487696,171.09,171.03,18.28]
[1747560726135,5.84453535,171.1,171.03,18.28]
[1747560727543,5.84453535,171.1,171.03,24.12692461]
[1747560728130,5.84419379,171.11,171.03,24.12692461]
[1747560729340,30.27914109,171.12,171.03,24.12692461]
[1747560729523,30.27914109,171.12,171.03,18.28]
[1747560729834,9.82565817,171.11,171.03,18.28]
[1747560730347,9.82565817,171.1,171.03,18.28]
[1747560731050,5.84487696,171.09,171.03,18.28]
[1747560732236,20.45706937,171.09,171.03,18.28]
[1747560738143,30.28272754,171.09,171.02,1.6319]
[1747560738320,9.82565817,171.08,171.02,1.6319]
[1747560738643,9.82565817,171.08,171.0,37.12]
[1747560738847,30.28272754,171.09,171.0,37.12]
[1747560740536,20.45706937,171.09,171.0,42.96793056]
[1747560740844,5.84487696,171.09,171.0,42.96793056]
[1747560742349,20.45603665,171.1,171.0,42.96793056]
[1747560744252,9.82565817,171.11,171.01,18.64964886]
[1747560744253,5.84419379,171.11,171.01,18.64964886]
[1747560744448,5.84419379,171.11,171.02,27.5791]
[1747560745041,5.84419379,171.11,171.04,26.0]
[1747560745451,5.84419379,171.11,171.04,32.359]
[1747560745627,138.2,171.14,171.04,32.359]
[1747560746329,5.84351078,171.13,171.05,24.40624378]
[1747560746535,5.84351078,171.13,171.06,18.56]
[1747560747832,5.84351078,171.13,171.06,24.40583276]
[1747560749252,5.84316933,171.14,171.06,24.40583276]
[1747560749750,5.84316933,171.14,171.06,18.56]
[1747560750049,30.27675083,171.14,171.06,18.56]
[1747560754359,9.82565817,171.13,171.06,18.56]
[1747560756945,5.84385226,171.12,171.06,18.56]
[1747560757252,20.45348292,171.12,171.06,18.56]
[1747560761641,14.60963066,171.12,171.06,18.56]
[1747560765661,20.45348292,171.12,171.06,18.56]
[1747560767463,9.82565817,171.08,171.02,1.5791]
[1747560767669,5.84556029,171.07,171.02,1.5791]
[1747560775873,5.8453093,171.08,171.02,1.5791]
[1747560776458,5.84419379,171.11,171.02,7.42622921]
[1747560776657,5.84419379,171.11,171.03,26.0]
[1747560777477,14.61020234,171.12,171.04,31.84658559]
[1747560777987,15.66916895,171.13,171.04,31.84658559]
[1747560780169,5.84351078,171.13,171.04,31.84658559]
[1747560780662,5.84351078,171.13,171.05,18.64964886]
[1747560780856,5.84248656,171.16,171.07,44.64964886]
[1747560781091,5.84225852,171.17,171.09,18.64964886]
[1747560781258,5.84225852,171.17,171.1,26.0]
[1747560781594,5.84225852,171.17,171.11,1.5267]
[1747560781755,5.84225852,171.17,171.12,5.84385226]
[1747560781952,25.97573299,171.18,171.13,24.66464886]
[1747560782180,5.84078952,171.21,171.14,36.96]
[1747560782985,5.84078952,171.21,171.14,42.80307287]
[1747560783277,5.84078952,171.21,171.14,36.96]
[1747560784388,20.44034339,171.23,171.14,36.96]
[1747560784983,9.82565817,171.22,171.13,6.015]
[1747560785287,9.82565817,171.2,171.11,1.5267]
[1747560785583,9.82565817,171.18,171.11,1.5267]
[1747560786379,9.82565817,171.18,171.1,26.0]
[1747560786380,20.44750831,171.17,171.1,26.0]
[1747560786594,30.27316648,171.17,171.1,26.0]
[1747560786895,9.82565817,171.16,171.09,36.86]
[1747560787475,30.27316648,171.17,171.09,36.86]
[1747560788770,9.82565817,171.16,171.09,36.86]
[1747560788984,9.82565817,171.14,171.09,36.86]
[1747560789789,9.82565817,171.14,171.07,1.589]
[1747560790863,5.84351078,171.13,171.07,1.589]
[1747560791789,5.84248656,171.16,171.08,26.0]
[1747560792482,5.8414627,171.19,171.12,26.0]
[1747560792964,14.60327583,171.2,171.12,26.0]
[1747560793796,14.60327583,171.2,171.12,31.84370238]
[1747560793987,5.84078032,171.21,171.12,31.84370238]
[1747560794790,5.84078032,171.21,171.13,20.21784886]
[1747560794978,14.60081194,171.23,171.14,5.84316933]
[1747560796481,9.82565817,171.22,171.13,1.5682]
[1747560796675,9.82565817,171.2,171.13,1.5682]
[1747560797509,9.82565817,171.21,171.13,1.5682]
[1747560798476,20.44392522,171.2,171.13,1.5682]
[1747560798675,30.26958339,171.2,171.11,44.42]
[1747560798985,9.82565817,171.19,171.11,18.42]
[1747560799185,30.26958339,171.2,171.11,18.42]
[1747560800769,20.44392522,171.2,171.11,18.42]
[1747560801197,30.26958339,171.2,171.11,18.42]
[1747560802704,9.82565817,171.19,171.11,18.42]
[1747560803910,5.84180394,171.18,171.11,18.42]
[1747560805195,20.44631381,171.18,171.11,18.42]
[1747560805506,20.44631381,171.18,171.09,27.5682]
[1747560805507,30.27197198,171.18,171.09,27.5682]
[1747560805703,9.82565817,171.16,171.09,27.5682]
[1747560806024,15.66848609,171.15,171.09,1.5682]
[1747560806231,9.82565817,171.14,171.07,18.42]
[1747560806537,20.44989774,171.15,171.07,18.42]
[1747560806700,5.84282792,171.15,171.09,26.0]
[1747560807815,14.60514678,171.18,171.09,31.84470259]
[1747560807816,20.44695072,171.18,171.09,31.84470259]
[1747560808001,30.27260889,171.18,171.09,26.0]
[1747560808201,9.82565817,171.17,171.09,26.0]
[1747560808604,9.82565817,171.17,171.07,50.26550894]
[1747560809685,30.27260889,171.18,171.07,50.26550894]
[1747560813218,20.44695072,171.18,171.09,5.84487696]
[1747560813426,20.44695072,171.18,171.09,7.50647696]
[1747560817022,5.84180394,171.18,171.09,7.50647696]
[1747560817322,5.84180394,171.18,171.09,14.09667696]
[1747560818196,5.8414627,171.19,171.09,14.09667696]
[1747560818599,30.27077762,171.19,171.09,14.09667696]
[1747560818910,9.82565817,171.18,171.09,1.6616]
[1747560819220,9.82565817,171.18,171.1,26.0]
[1747560819420,9.82565817,171.15,171.09,1.6616]
[1747560819996,9.82565817,171.16,171.09,1.6616]
[1747560820229,5.84282792,171.15,171.09,1.6616]
[1747560821727,15.66848609,171.15,171.07,44.42]
[1747560821897,30.27555591,171.15,171.07,44.42]
[1747560824732,14.60706982,171.15,171.07,44.42]
[1747560825235,14.60706982,171.15,171.07,50.26552341]
[1747560826330,14.60706982,171.15,171.07,44.42]
[1747560827132,20.44989774,171.15,171.07,44.42]
[1747560830934,20.44989774,171.15,171.07,50.26545806]
[1747560831238,5.84282792,171.15,171.07,50.26545806]
[1747560832927,20.44882671,171.16,171.07,50.26545806]
[1747560833124,20.44882671,171.16,171.07,44.42]
[1747560833441,30.27448488,171.16,171.07,44.42]
[1747560837930,9.82565817,171.14,171.05,45.0718]
[1747560838129,9.82565817,171.14,171.05,20.1016]
[1747560838328,9.82565817,171.13,171.05,20.1016]
[1747560838849,9.82565817,171.12,171.05,20.1016]
[1747560839025,5.84419379,171.11,171.05,20.1016]
[1747560841050,20.45376839,171.12,171.05,20.1016]
[1747560842251,30.27942656,171.12,171.05,20.1016]
[1747560842558,9.82565817,171.1,171.01,8.1422]
[1747560842866,28.47530703,171.11,171.01,8.1422]
[1747560843023,20.45587374,171.1,171.01,8.1422]
[1747560843423,20.45587374,171.1,171.01,13.98976313]
[1747560843651,20.45587374,171.1,171.01,8.1422]
[1747560844751,5.84417838,171.12,171.01,32.63940105]
[1747560844950,5.84417838,171.12,171.04,31.84658559]
[1747560845627,5.84417838,171.12,171.05,1.6067]
[1747560845956,5.84316933,171.14,171.07,26.0]
[1747560846953,20.44914621,171.16,171.07,31.8454793]
[1747560847353,20.44914621,171.16,171.07,26.0]
[1747560847854,20.44914621,171.16,171.07,31.84554951]
[1747560848154,5.84248656,171.16,171.07,38.51034951]
[1747560849360,5.84214523,171.17,171.07,38.51034951]
[1747560850056,5.84214523,171.17,171.08,18.64964886]
[1747560851033,5.84180394,171.18,171.09,5.84487696]
[1747560852168,14.60385687,171.19,171.09,5.84487696]
[1747560852169,20.44531957,171.19,171.09,5.84487696]
[1747560852932,5.8414627,171.19,171.1,1.6533]
[1747560854257,5.8414627,171.19,171.11,5.84419379]
[1747560861846,24.40122391,171.2,171.11,5.84419379]
[1747560862056,5.84122391,171.2,171.12,37.06]
[1747560862660,5.8404392,171.22,171.13,32.3619]
[1747560863573,20.43977337,171.24,171.14,5.84316933]
[1747560863969,20.43977337,171.24,171.15,1.6502]
[1747560864776,5.8404392,171.22,171.15,1.6502]
[1747560865075,9.82565817,171.21,171.15,1.6502]
[1747560866362,30.26719537,171.22,171.15,1.6502]
[1747560866881,9.82565817,171.21,171.15,1.6502]
[1747560867112,30.26958339,171.2,171.13,37.04]
[1747560867253,9.82565817,171.19,171.13,37.04]
[1747560867677,9.82565817,171.19,171.13,18.54]
[1747560868192,9.82565817,171.17,171.1,27.6502]
[1747560868486,9.82565817,171.16,171.1,1.6502]
[1747560868691,9.82565817,171.16,171.09,18.54]
[1747560869383,5.84282792,171.15,171.09,18.54]
[1747560872276,20.44989774,171.15,171.09,18.54]
[1747560872466,9.82565817,171.14,171.09,18.54]
[1747560873803,5.84351078,171.13,171.09,18.54]
[1747560874468,5.84351078,171.13,171.06,27.6502]
[1747560875200,15.66916895,171.13,171.06,27.6502]
[1747560875371,5.84351078,171.13,171.06,27.6502]
[1747560875832,5.84316933,171.14,171.06,33.49597527]
[1747560876396,5.84316933,171.14,171.06,27.6502]
[1747560877374,5.84316933,171.14,171.06,33.49601479]
[1747560878475,20.44989774,171.15,171.06,33.49601479]
[1747560879004,5.84282792,171.15,171.07,18.64964886]
[1747560879177,5.84214523,171.17,171.1,26.0]
[1747560879381,5.84214523,171.17,171.11,1.5805]
[1747560880502,5.8414627,171.19,171.11,1.5805]
[1747560881393,20.44511945,171.19,171.11,1.5805]
[1747560881584,30.27077762,171.19,171.11,1.5805]
[1747560882710,30.27077762,171.19,171.11,7.42468113]
[1747560883087,30.27077762,171.19,171.11,1.5805]
[1747560884890,9.82565817,171.18,171.11,1.5805]
[1747560886198,20.44750831,171.17,171.11,1.5805]
[1747560887511,30.27316648,171.17,171.1,63.1]
[1747560887817,20.44750831,171.17,171.1,63.1]
[1747560888428,20.44750831,171.17,171.1,68.9445123]
[1747560888580,5.84214523,171.17,171.1,68.9445123]
[1747560889711,20.4442581,171.2,171.1,68.9445123]
[1747560894626,30.26991627,171.2,171.1,68.9445123]
[1747560896380,30.26991627,171.2,171.1,63.1]
[1747560897013,9.82565817,171.18,171.1,44.54]
[1747560897216,20.4442581,171.2,171.1,44.54]
[1747560897217,9.82565817,171.17,171.1,44.54]
[1747560898307,9.82565817,171.17,171.1,18.54]
[1747560898482,5.84248656,171.16,171.1,18.54]
[1747560898685,30.27436113,171.16,171.1,18.54]
[1747560899511,9.82565817,171.15,171.1,18.54]
[1747560900621,5.84316933,171.14,171.1,18.54]
[1747560902928,14.6062164,171.16,171.1,18.54]
[1747560904029,15.66746211,171.18,171.1,18.54]
[1747560904333,30.27197198,171.18,171.1,18.54]
[1747560904530,20.44631381,171.18,171.1,18.54]
[1747560904713,20.44631381,171.18,171.1,24.38450836]
[1747560904909,5.84180394,171.18,171.1,24.38450836]
[1747560905312,5.84180394,171.18,171.1,50.38450836]
[1747560905909,5.8415175,171.19,171.11,18.64964886]
[1747560906114,5.8415175,171.19,171.13,27.5523]
[1747560906432,5.84009811,171.23,171.13,27.5523]
[1747560906608,5.84009811,171.23,171.14,18.64964886]
[1747560907015,20.43969537,171.24,171.14,24.4925226]
[1747560908006,5.83975706,171.24,171.17,26.0]
[1747560908234,5.83975706,171.24,171.17,44.5]
[1747560908517,5.83975706,171.24,171.18,1.5373]
[1747560908838,5.83975706,171.24,171.18,20.0773]
[1747560909209,5.83907509,171.26,171.18,32.29626736]
[1747560910314,5.83907509,171.26,171.18,26.4548]
[1747560910521,5.83907509,171.26,171.18,32.29652609]
[1747560917046,24.94176401,171.27,171.2,5.84112149]
[1747560917423,19.10295686,171.27,171.21,26.0]
[1747560917818,5.83816313,171.29,171.23,26.0]
[1747560918018,5.83816313,171.29,171.23,44.5]
[1747560919451,5.83703011,171.32,171.23,50.34009269]
[1747560919823,5.83703011,171.32,171.24,20.0772]
[1747560920746,5.83668942,171.33,171.24,25.91674507]
[1747560920952,30.25407116,171.33,171.24,20.0772]
[1747560923495,30.25407116,171.33,171.24,25.9169411]
[1747560925258,14.59172357,171.33,171.24,25.9169411]
[1747560925573,5.83634878,171.34,171.24,25.9169411]
[1747560925779,5.83634878,171.34,171.27,26.0]
[1747560927394,5.83532707,171.37,171.28,27.6189]
[1747560927569,5.83532707,171.37,171.29,18.48]
[1747560927895,5.83532707,171.37,171.3,18.5]
[1747560929497,148.02565817,171.4,171.3,18.5]
[1747560929498,5.83498657,171.38,171.3,24.3374671]
[1747560930595,20.42007,171.4,171.3,24.3374671]
[1747560931515,30.24572817,171.4,171.3,24.3374671]
[1747560931892,20.42007,171.4,171.3,24.3374671]
[1747560932511,5.83430571,171.4,171.31,26.0]
[1747560932689,5.83430571,171.4,171.33,1.6382]
[1747560933619,5.83362501,171.42,171.33,7.47476087]
[1747560934318,20.41768754,171.42,171.33,1.6382]
[1747560934635,30.24334571,171.42,171.33,1.6382]
[1747560934852,20.41768754,171.42,171.33,1.6382]
[1747560935294,30.24334571,171.42,171.33,1.6382]
[1747560935913,30.24334571,171.42,171.33,7.47482307]
[1747560936112,9.82565817,171.37,171.28,38.5782]
[1747560936502,9.82565817,171.37,171.29,26.0]
[1747560936904,9.82565817,171.39,171.29,26.0]
[1747560938029,5.83498657,171.38,171.29,31.83783374]
[1747560939931,5.83464612,171.39,171.3,18.64964886]
[1747560940103,14.58377562,171.43,171.33,26.0]
[1747560940303,14.58377562,171.43,171.34,20.0731]
[1747560940607,5.83362501,171.42,171.34,38.5131]
[1747560942019,30.24271851,171.43,171.35,5.83600817]
[1747560942422,30.24271851,171.43,171.34,44.34939718]
[1747560945135,5.83328472,171.43,171.37,26.0]
[1747560951415,30.24215469,171.43,171.34,38.5131]
[1747560952839,30.24215469,171.43,171.34,44.34944034]
[1747560954236,30.24215469,171.43,171.34,38.5131]
[1747560954540,30.24215469,171.43,171.34,44.34942608]
[1747560961954,24.40886997,171.43,171.34,44.34942608]
[1747560963359,30.24215469,171.43,171.34,44.34942608]
[1747560965054,9.82565817,171.42,171.34,38.5131]
[1747560967325,5.83396534,171.41,171.34,44.34940365]
[1747560967753,5.83396534,171.41,171.34,25.90940365]
[1747560967935,5.83396534,171.41,171.34,44.30940365]
[1747560968258,5.83362501,171.42,171.34,44.30940365]
[1747560969663,5.83362501,171.42,171.34,38.4731]
[1747560969840,20.41768754,171.42,171.34,38.4731]
[1747560970364,20.41768754,171.42,171.34,44.30938894]
[1747560972165,24.4097207,171.42,171.34,44.30938894]
[1747560972660,24.4097207,171.42,171.34,38.4731]
[1747560973351,24.4097207,171.42,171.34,44.30944302]
[1747560974269,30.24334571,171.42,171.34,44.30944302]
[1747560975780,30.24334571,171.42,171.34,38.4731]
[1747560976681,30.24334571,171.42,171.34,44.30944336]
[1747560976682,20.41768754,171.42,171.34,44.30944336]
[1747560976978,30.24334571,171.42,171.34,44.30944336]
[1747560977174,20.41768754,171.42,171.34,44.30944336]
[1747560978957,20.41768754,171.42,171.34,38.4731]
[1747560979280,20.41768754,171.42,171.34,44.30942308]
[1747560980483,20.41768754,171.42,171.34,38.4731]
[1747560980853,20.41768754,171.42,171.34,44.30944157]
[1747560981149,20.41768754,171.42,171.34,38.4731]
[1747560981958,30.24334571,171.42,171.34,38.4731]
[1747560982552,9.82565817,171.39,171.34,18.44]
[1747560982782,9.82565817,171.38,171.34,18.44]
[1747560983084,5.83532707,171.37,171.34,18.44]
[1747560983449,5.83532707,171.37,171.31,6.3726]
[1747560984562,5.83532707,171.37,171.3,62.78]
[1747560985155,5.83532707,171.37,171.3,18.38]
[1747560985665,15.65996388,171.4,171.31,26.0]
[1747560986479,9.82565817,171.32,171.24,1.6107]
[1747560986981,5.83737084,171.31,171.24,1.6107]
[1747560988768,15.66302901,171.31,171.24,1.6107]
[1747560988959,30.25645613,171.31,171.24,1.6107]
[1747560991286,20.43079796,171.31,171.24,1.6107]
[1747560991490,30.25645613,171.31,171.24,1.6107]
[1747560992183,5.83737084,171.31,171.24,1.6107]
[1747560992386,5.83737084,171.31,171.24,7.45040693]
[1747560994288,5.83737084,171.31,171.24,1.6107]
[1747560995588,15.66302901,171.31,171.24,1.6107]
[1747560995763,30.25645613,171.31,171.24,1.6107]
[1747560997455,9.82565817,171.3,171.24,1.6107]
[1747560999292,30.25884165,171.29,171.24,1.6107]
[1747560999469,9.82565817,171.28,171.22,18.38]
[1747560999669,9.82565817,171.27,171.22,18.38]
[1747561001089,9.82565817,171.26,171.2,1.6535]
[1747561001399,5.83941605,171.25,171.2,1.6535]
[1747561001795,20.43795619,171.25,171.2,1.6535]
[1747561002097,9.82565817,171.23,171.17,18.4]
[1747561002264,20.43795619,171.25,171.14,1.6535]
[1747561002265,9.82565817,171.21,171.14,1.6535]
[1747561002594,9.82565817,171.19,171.12,18.4]
[1747561002770,9.82565817,171.18,171.12,18.4]
[1747561003383,15.6678034,171.17,171.12,18.4]
[1747561003570,9.82565817,171.16,171.12,18.4]
[1747561003768,9.82565817,171.15,171.1,1.5098]
[1747561004598,9.82565817,171.15,171.08,34.29315611]
[1747561004764,9.82565817,171.15,171.08,8.29315611]
[1747561005290,18.64964886,171.19,171.08,8.29315611]
[1747561005291,5.84385226,171.12,171.08,8.29315611]
[1747561005493,5.84385226,171.12,171.06,18.4]
[1747561005707,9.82565817,171.1,171.04,1.5098]
[1747561005887,9.82565817,171.09,171.04,1.5098]
[1747561006507,9.82565817,171.1,171.04,1.5098]
[1747561006673,20.45348292,171.12,171.04,1.5098]
[1747561006865,5.84385226,171.12,171.04,7.35627998]
[1747561007067,15.66951043,171.12,171.04,7.35627998]
[1747561007309,15.67940839,171.12,171.07,9.83555613]
[1747561007667,9.83555613,171.11,171.06,9.83555613]
[1747561008395,9.83555613,171.11,171.05,9.83555613]
[1747561008993,9.83555613,171.11,171.06,9.83555613]
[1747561009197,5.84385226,171.12,171.04,1.5098]
[1747561009373,5.84453535,171.1,171.06,9.83555613]
[1747561009578,5.84401153,171.12,171.07,9.83555613]
[1747561009892,15.67956766,171.12,171.07,9.83555613]
[1747561010199,5.84401153,171.12,171.09,9.83555613]
[1747561010873,5.84401153,171.12,171.08,9.83555613]
[1747561011288,5.84351078,171.13,171.08,9.83555613]
[1747561011487,15.67906691,171.13,171.08,9.83555613]
[1747561015602,5.84351078,171.13,171.08,9.83555613]
[1747561015808,15.67906691,171.13,171.08,9.83555613]
[1747561017329,5.84351078,171.13,171.08,9.83555613]
[1747561017608,15.67906691,171.13,171.08,9.83555613]
[1747561017911,9.83555613,171.12,171.07,9.83555613]
[1747561018997,9.83555613,171.12,171.08,9.83555613]
[1747561019403,5.84419379,171.11,171.08,9.83555613]
[1747561019824,5.84391693,171.12,171.09,9.83555613]
[1747561020188,5.84391693,171.12,171.1,9.83555613]
[1747561020713,5.84316933,171.14,171.1,9.83555613]
[1747561020927,5.84316933,171.14,171.13,9.83555613]
[1747561021488,5.84214523,171.17,171.13,9.83555613]
[1747561021729,5.84214523,171.17,171.14,9.83555613]
[1747561022014,5.84214523,171.17,171.15,9.83555613]
[1747561022206,5.84214523,171.17,171.16,9.83555613]
[1747561022390,5.84214523,171.17,171.15,9.83555613]
[1747561023114,5.8414627,171.19,171.15,9.83555613]
[1747561024195,5.8414627,171.19,171.16,9.83555613]
[1747561024405,5.8414627,171.19,171.17,9.83555613]
[1747561025618,5.8414627,171.19,171.16,9.83555613]
[1747561025931,19.38531674,171.2,171.18,9.83555613]
[1747561026090,19.38531674,171.2,171.19,9.83555613]
[1747561026290,25.22643823,171.2,171.19,9.83555613]
[1747561026601,25.22643823,171.2,171.17,9.83555613]
[1747561027187,25.22643823,171.2,171.16,9.83555613]
[1747561027417,35.06199436,171.2,171.15,9.83555613]
[1747561028015,9.83555613,171.18,171.13,28.25555613]
[1747561029320,5.84214523,171.17,171.13,28.25555613]
[1747561029508,5.84214523,171.17,171.14,9.83555613]
[1747561031320,5.84180394,171.18,171.14,9.83555613]
[1747561033018,15.67736007,171.18,171.13,28.25555613]
[1747561033930,9.83555613,171.17,171.13,18.42]
[1747561034423,30.28186994,171.18,171.13,28.25555613]
[1747561034618,15.67736007,171.18,171.13,28.25555613]
[1747561036507,15.67736007,171.18,171.13,9.83555613]
[1747561036825,9.83555613,171.17,171.12,9.83555613]
[1747561037031,9.83555613,171.16,171.11,11.35525613]
[1747561037206,9.83555613,171.17,171.12,9.83555613]
[1747561038535,5.84248656,171.16,171.12,9.83555613]
[1747561039329,5.8414627,171.19,171.14,9.83555613]
[1747561041034,15.67701883,171.19,171.14,9.83555613]
[1747561043037,30.28067558,171.19,171.14,9.83555613]
[1747561043813,30.28067558,171.19,171.13,9.83555613]
[1747561044842,9.83555613,171.18,171.13,9.83555613]
[1747561045726,30.28067558,171.19,171.13,9.83555613]
[1747561047518,30.28067558,171.19,171.14,9.83555613]
[1747561050648,9.83555613,171.18,171.12,9.83555613]
[1747561051554,5.84214523,171.17,171.12,9.83555613]
[1747561052044,5.84214523,171.17,171.13,9.83555613]
[1747561056820,5.84180394,171.18,171.13,9.83555613]
[1747561058257,30.28186994,171.18,171.13,9.83555613]
[1747561062245,30.28186994,171.18,171.12,9.83555613]
[1747561062639,30.28186994,171.18,171.13,9.83555613]
[1747561063863,20.44631381,171.18,171.13,9.83555613]
[1747561064069,5.8414627,171.19,171.15,9.83555613]
[1747561065143,5.8414627,171.19,171.16,9.83555613]
[1747561065341,5.8414627,171.19,171.16,6.28759477]
[1747561066250,25.22651786,171.2,171.17,6.28759477]
[1747561066935,25.22651786,171.2,171.18,6.28759477]
[1747561067440,25.22651786,171.2,171.18,9.82330783]
[1747561068745,25.22651786,171.2,171.13,5.84340388]
[1747561068957,25.22651786,171.2,171.17,9.82330783]
[1747561071460,25.22651786,171.2,171.18,9.82330783]
[1747561077389,25.22651786,171.2,171.17,9.82330783]
[1747561079560,25.22651786,171.2,171.19,9.82330783]
[1747561079561,19.38531674,171.2,171.19,9.82330783]
[1747561079761,5.83907509,171.26,171.19,9.82330783]
[1747561079966,5.83907509,171.26,171.23,9.82330783]
[1747561080273,5.83907509,171.26,171.25,9.82330783]
[1747561080561,5.83805242,171.29,171.25,9.82330783]
[1747561080858,5.8377877,171.3,171.28,9.82330783]
[1747561081041,5.8377877,171.3,171.29,9.82330783]
[1747561081245,20.42898487,171.33,171.29,9.82330783]
[1747561081675,20.42898487,171.33,171.27,9.82330783]
[1747561081887,30.2522927,171.33,171.29,9.82330783]
[1747561082173,30.2522927,171.33,171.28,9.82330783]
[1747561082777,20.42898487,171.33,171.29,9.82330783]
[1747561082944,30.2522927,171.33,171.28,9.82330783]
[1747561083362,9.82330783,171.32,171.27,9.82330783]
[1747561084487,20.43079796,171.31,171.24,1.6543]
[1747561084646,20.43079796,171.31,171.27,9.82330783]
[1747561084964,20.43079796,171.31,171.24,11.47760783]
[1747561084965,9.82330783,171.3,171.24,11.47760783]
[1747561085150,9.82330783,171.29,171.24,11.47760783]
[1747561085354,9.82330783,171.29,171.24,9.82330783]
[1747561086285,9.82330783,171.28,171.23,9.82330783]
[1747561086475,20.43556956,171.27,171.23,9.82330783]
[1747561086854,20.43556956,171.27,171.24,9.82330783]
[1747561088164,20.43556956,171.27,171.2,27.5559]
[1747561088165,20.43556956,171.27,171.23,9.82330783]
[1747561089979,20.43556956,171.27,171.22,9.82330783]
[1747561090888,20.43556956,171.27,171.23,9.82330783]
[1747561091592,30.25887739,171.27,171.22,9.82330783]
[1747561092178,30.25887739,171.27,171.21,9.82330783]
[1747561092179,9.82330783,171.26,171.21,9.82330783]
[1747561092560,30.26126402,171.25,171.2,11.37920783]
[1747561093382,9.82330783,171.24,171.19,28.38330783]
[1747561093595,9.82330783,171.23,171.18,9.82330783]
[1747561094095,9.82330783,171.23,171.16,1.5559]
[1747561094260,9.82330783,171.23,171.18,9.82330783]
[1747561094461,5.8404392,171.22,171.18,9.82330783]
[1747561095854,20.4415372,171.22,171.18,9.82330783]
[1747561096271,9.82330783,171.22,171.17,9.82330783]
[1747561098384,9.82330783,171.23,171.18,9.82330783]
[1747561098595,20.43795619,171.25,171.21,9.82330783]
[1747561098900,5.83941605,171.25,171.24,9.82330783]
[1747561099992,5.83873416,171.27,171.24,9.82330783]
[1747561100179,20.43556956,171.27,171.23,9.82330783]
[1747561100579,20.43556956,171.27,171.22,1.5695]
[1747561100780,20.43556956,171.27,171.23,9.82330783]
[1747561104268,5.83873416,171.27,171.25,9.82330783]
[1747561104469,5.83873416,171.27,171.26,9.82330783]
[1747561105395,20.43233646,171.3,171.26,9.82330783]
[1747561106164,30.25564429,171.3,171.22,1.5695]
[1747561106370,9.82330783,171.28,171.22,1.5695]
[1747561106582,9.82330783,171.28,171.23,9.82330783]
[1747561107602,5.83873416,171.27,171.23,9.82330783]
[1747561107898,5.83873416,171.27,171.24,9.82330783]
[1747561109288,5.83873416,171.27,171.25,9.82330783]
[1747561110205,14.59618259,171.28,171.25,9.82330783]
[1747561110512,14.59618259,171.28,171.24,9.82330783]
[1747561112195,20.43457586,171.28,171.24,9.82330783]
[1747561115078,20.43457586,171.28,171.23,9.82330783]
[1747561116008,30.25788369,171.28,171.22,11.39280783]
[1747561116184,9.82330783,171.27,171.22,11.39280783]
[1747561116803,30.25788369,171.28,171.22,11.39280783]
[1747561121303,20.43457586,171.28,171.25,9.82330783]
[1747561122437,14.59618259,171.28,171.25,9.82330783]
[1747561122795,14.59618259,171.28,171.24,9.82330783]
[1747561125320,14.59618259,171.28,171.25,9.82330783]
[1747561125519,14.59618259,171.28,171.24,9.82330783]
[1747561126221,14.59618259,171.28,171.23,9.82330783]
[1747561126608,20.43457586,171.28,171.23,9.82330783]
[1747561127327,20.43457586,171.28,171.25,9.82330783]
[1747561128830,14.59618259,171.28,171.25,9.82330783]
[1747561129206,5.83771161,171.3,171.25,9.82330783]
[1747561129836,5.83771161,171.3,171.27,9.82330783]
[1747561130009,5.83771161,171.3,171.29,9.82330783]
[1747561130210,5.83703011,171.32,171.29,9.82330783]